[Event "WYCC 2018 O16"]
[Site "Halkidiki"]
[Date "2018.10.29"]
[Round "10"]
[White "Peng, Hongchi"]
[Black "Guerra Rivera, Salvador"]
[Result "0-1"]
[ECO "B35"]
[WhiteElo "2273"]
[BlackElo "2340"]
[Annotator "NA"]
[PlyCount "82"]
[EventDate "2018.10.20"]
[EventType "swiss"]
[EventCountry "GRE"]
[SourceTitle "playchess.com"]
[Source "ChessBase"]
[SourceQuality "1"]
[TimeControl "40/5400+30:1800+30"]

1. e4 {[%emt 0:00:00]} c5 {[%emt 0:00:00]} 2. Nf3 {[%emt 0:00:00]} Nc6 {[%emt 0:00:19]} 3. d4 {[%emt 0:00:00]} cxd4 {[%emt 0:00:33]} 4. Nxd4 {[%emt 0:00:00]} g6 {[%emt 0:00:32]} 5. Nc3 {[%emt 0:00:27]} Bg7 {[%emt 0:00:15]} 6. Be3 {[%emt 0:00:04]} Nf6 {[%emt 0:00:26]} 7. Bc4 {[%emt 0:00:05]} O-O {[%emt 0:00:40]} 8. Bb3 {[%emt 0:00:03]} Re8 {[%emt 0:00:24] B35: Sicilian: Accelerated Dragon with 5 Nc3: main line} 9. f3 {[%emt 0:02:03]} d5 {[%emt 0:00:16]} 10. exd5 {[%emt 0:01:37]} Nb4 {[%emt 0:00:12]} 11. Nde2 {[%emt 0:07:49]} e6 {[%emt 0:00:26]} 12. d6 $146 {[%emt 0:00:12]} ({Predecessor:} 12. Bd4 exd5 13. Qd2 Nc6 14. O-O-O Nxd4 15. Nxd4 Bd7 16. g4 {1-0 (33) Navara,D (2740)-Gelfand,B (2703) Batumi 2018}) 12... Nfd5 {[%emt 0:09:40]} 13. Bd4 {[%emt 0:02:53]} Bh6 {[%emt 0:07:23]} 14. a3 {[%emt 0:14:07]} Nc6 {[%emt 0:20:14]} 15. Bxd5 {[%emt 0:10:33]} exd5 {[%emt 0:01:29]} 16. Nxd5 {[%emt 0:00:26]} Nxd4 {[%emt 0:03:39]} (16... Re6 $1 $11) 17. Qxd4 {[%emt 0:00:30]} Bg7 {[%emt 0:01:32]} 18. Qb4 {[%emt 0:10:36]} (18. Ne7+ $16 Rxe7 19. dxe7 Qxe7 20. Qb4) 18... a5 {[%emt 0:02:47]} 19. Qc5 {[%emt 0:14:13]} b6 {[%emt 0:00:46]} 20. Qc6 {[%emt 0:19:27]} Ba6 {[%emt 0:03:44]} 21. Ne7+ {[%emt 0:01:13]} Kh8 $15 {[%emt 0:00:16]} 22. c4 {[%emt 0:01:02]} Bxb2 {[%emt 0:03:45]} 23. Rd1 {[%emt 0:03:14]} Bxa3 {[%emt 0:09:34]} 24. O-O {[%emt 0:00:43]} Bc5+ {[%emt 0:00:59]} 25. Kh1 {[%emt 0:00:09]} Bxd6 {[%emt 0:03:36]} 26. Nf5 {[%emt 0:02:03]} gxf5 {[%emt 0:01:38]} 27. Rxd6 {[%emt 0:00:14]} Qc8 {[%emt 0:01:38]} 28. Qxb6 {[%emt 0:00:58]} Rxe2 {[%emt 0:03:56]} 29. Rfd1 {[%emt 0:02:02]} Qe8 {[%emt 0:03:43]} 30. Qd4+ {[%emt 0:00:04]} Kg8 {[%emt 0:00:10]} 31. Qh4 {[%emt 0:00:02]} Re6 {[%emt 0:02:48]} 32. c5 {[%emt 0:00:14]} Qe7 {[%emt 0:01:50]} 33. Qg3+ {[%emt 0:00:44]} Rg6 {[%emt 0:00:05]} 34. Qf4 {[%emt 0:00:15]} Re8 {[%emt 0:00:31]} 35. h4 {[%emt 0:01:00]} Qe2 {[%emt 0:00:53]} 36. R6d2 {[%emt 0:05:53]} Qe5 {[%emt 0:01:16]} 37. Qa4 {[%emt 0:00:13]} Bb7 {[%emt 0:02:29]} 38. Qb3 {[%emt 0:01:43]} Bc6 {[%emt 0:01:01]} 39. Qc4 {[%emt 0:00:27]} Qg3 {[%emt 0:00:39]} 40. Rf1 {[%emt 0:00:00]} f4 {[%emt 0:00:00]} 41. h5 {[%emt 0:01:27]} Rg5 {[%emt 0:01:00]} 0-1

[Event "WYCC 2018 O16"]
[Site "Halkidiki"]
[Date "2018.10.29"]
[Round "10"]
[White "Semjonovs, Ilja"]
[Black "Wachinger, Nikolas"]
[Result "1-0"]
[ECO "B90"]
[WhiteElo "2245"]
[BlackElo "2360"]
[Annotator "NA"]
[PlyCount "91"]
[EventDate "2018.10.20"]
[EventType "swiss"]
[EventCountry "GRE"]
[SourceTitle "playchess.com"]
[Source "ChessBase"]
[SourceQuality "1"]
[TimeControl "40/5400+30:1800+30"]

1. e4 {[%emt 0:00:06]} c5 {[%emt 0:00:00]} 2. Nf3 {[%emt 0:00:18]} d6 {[%emt 0:00:00]} 3. d4 {[%emt 0:00:28]} Nf6 {[%emt 0:00:00]} 4. Nc3 {[%emt 0:00:06]} cxd4 {[%emt 0:00:03]} 5. Nxd4 {[%emt 0:00:05]} a6 {[%emt 0:00:08]} 6. Be3 {[%emt 0:00:28]} Ng4 {[%emt 0:00:11]} 7. Bc1 {[%emt 0:00:19]} Nf6 {[%emt 0:00:08]} 8. Be3 {[%emt 0:00:22]} Ng4 {[%emt 0:00:10]} 9. Bc1 {[%emt 0:00:06]} Nc6 {[%emt 0:00:09]} 10. Nxc6 {[%emt 0:09:31]} bxc6 {[%emt 0:00:08]} 11. Be2 {[%emt 0:02:29]} Nf6 {[%emt 0:00:08]} 12. O-O {[%emt 0:04:13]} e5 {[%emt 0:00:13]} 13. f4 {[%emt 0:04:51]} Nd7 {[%emt 0:30:29]} 14. Bg4 {[%emt 0:11:36]} Be7 {[%emt 0:02:19]} 15. Bxd7+ {[%emt 0:09:35]} Qxd7 {[%emt 0:10:06]} 16. fxe5 {[%emt 0:05:49]} dxe5 {[%emt 0:00:14]} 17. Qxd7+ {[%emt 0:06:32]} Bxd7 $11 {[%emt 0:00:10]} 18. Be3 {[%emt 0:00:06]} Rb8 {[%emt 0:02:55]} 19. b3 {[%emt 0:02:23]} O-O {[%emt 0:02:37]} 20. Na4 {[%emt 0:02:44]} Rfe8 {[%emt 0:05:35]} 21. h3 {[%emt 0:07:40]} Be6 {[%emt 0:06:54]} 22. Bc5 {[%emt 0:08:38]} Bg5 {[%emt 0:01:33]} 23. Rad1 {[%emt 0:01:57]} Rbd8 {[%emt 0:03:44]} 24. Bb6 {[%emt 0:14:21]} Rxd1 {[%emt 0:08:13]} 25. Rxd1 {[%emt 0:00:04]} f5 {[%emt 0:00:09]} 26. Re1 {[%emt 0:00:09]} fxe4 {[%emt 0:03:18]} 27. Nc5 {[%emt 0:02:42]} Bf5 {[%emt 0:00:40]} 28. Nxe4 {[%emt 0:00:20]} Be7 {[%emt 0:00:31]} 29. Re2 {[%emt 0:05:06]} Bg6 {[%emt 0:02:24]} 30. Bc7 {[%emt 0:00:59]} Bb4 {[%emt 0:01:18]} 31. Bd6 {[%emt 0:00:48]} a5 {[%emt 0:01:45]} 32. a3 {[%emt 0:00:30]} Bxd6 {[%emt 0:02:18]} 33. Nxd6 {[%emt 0:00:04]} Rd8 {[%emt 0:07:25]} 34. Nc4 {[%emt 0:00:12]} a4 {[%emt 0:00:04]} 35. bxa4 {[%emt 0:01:16]} e4 {[%emt 0:00:59]} 36. Ne5 {[%emt 0:00:20]} Rd4 {[%emt 0:00:26]} 37. c4 {[%emt 0:00:41]} Bf5 {[%emt 0:03:59]} 38. Kf2 {[%emt 0:00:29]} Be6 {[%emt 0:02:18]} 39. Ke3 {[%emt 0:00:20]} c5 {[%emt 0:00:01]} 40. Rd2 {[%emt 0:00:00]} Bxc4 {[%emt 0:00:00]} 41. Rxd4 {[%emt 0:01:12]} cxd4+ {[%emt 0:02:59]} 42. Kxd4 {[%emt 0:03:10]} Bf1 {[%emt 0:08:54]} 43. a5 {[%emt 0:03:57]} Bxg2 {[%emt 0:00:08]} 44. a6 {[%emt 0:01:19]} e3 {[%emt 0:00:30]} 45. Kxe3 {[%emt 0:00:36]} Ba8 46. Nd7 {[%emt 0:00:30]} 1-0

[Event "WYCC 2018 O16"]
[Site "Halkidiki"]
[Date "2018.10.29"]
[Round "10"]
[White "Quirhuayo Chumbe, German Gonzalo"]
[Black "Szpar, Milosz"]
[Result "1/2-1/2"]
[ECO "B34"]
[WhiteElo "2220"]
[BlackElo "2328"]
[Annotator "NA"]
[PlyCount "121"]
[EventDate "2018.10.20"]
[EventType "swiss"]
[EventCountry "GRE"]
[SourceTitle "playchess.com"]
[Source "ChessBase"]
[SourceQuality "1"]
[TimeControl "40/5400+30:1800+30"]

1. e4 {[%emt 0:00:00]} c5 {[%emt 0:00:00]} 2. Nf3 {[%emt 0:00:00]} Nc6 {[%emt 0:00:00]} 3. d4 {[%emt 0:00:00]} cxd4 {[%emt 0:00:10]} 4. Nxd4 {[%emt 0:00:00]} Nf6 {[%emt 0:00:37]} 5. Nc3 {[%emt 0:00:00]} e5 {[%emt 0:00:22]} 6. Ndb5 {[%emt 0:00:00]} d6 {[%emt 0:00:08]} 7. Nd5 {[%emt 0:00:09]} Nxd5 {[%emt 0:00:23]} 8. exd5 {[%emt 0:00:06]} Nb8 {[%emt 0:00:35]} 9. c4 {[%emt 0:00:16]} a6 {[%emt 0:06:40]} 10. Nc3 {[%emt 0:01:08]} Be7 {[%emt 0:00:35]} 11. Bd3 {[%emt 0:01:38]} O-O {[%emt 0:01:48]} 12. O-O {[%emt 0:00:06]} f5 {[%emt 0:00:44]} 13. f3 {[%emt 0:00:13]} Bg5 {[%emt 0:05:16] B33: Sicilian: Pelikan and Sveshnikov Variations} (13... Nd7 14. Be3 Bg5 15. Bf2 b6 16. b4 Bb7 17. Qc2 g6 18. Kh1 Kh8 19. Rab1 Rc8 20. a4 Qe7 21. Bg1 Qg7 22. Rb3 Bf6 23. Qd2 {1-0 (41) Oparin,G (2526)-Tregubov,P (2614) Yerevan 2014}) 14. Bxg5 {[%emt 0:01:38]} Qxg5 {[%emt 0:00:17] LiveBook: 20 Games} 15. b4 {[%emt 0:01:06]} Nd7 {[%emt 0:03:24]} 16. Kh1 $146 {[%emt 0:01:10]} ({Predecessor:} 16. Qc1 Qh4 17. Qe3 Qf6 18. Rac1 e4 19. fxe4 f4 20. Qf2 a5 21. bxa5 {0-1 (32) Figus,M-Ciuffoletti,P (2168) Turin 2000}) 16... e4 {[%emt 0:29:23]} 17. fxe4 {[%emt 0:03:27]} f4 {[%emt 0:00:18]} 18. Qd2 {[%emt 0:06:35]} Qh6 {[%emt 0:01:07]} 19. g3 {[%emt 0:07:04]} f3 {[%emt 0:02:00]} 20. Qxh6 {[%emt 0:00:14]} gxh6 {[%emt 0:00:04]} 21. Nd1 {[%emt 0:00:16]} a5 {[%emt 0:00:30]} 22. c5 {[%emt 0:05:14]} axb4 {[%emt 0:18:47]} 23. cxd6 {[%emt 0:00:47]} b3 {[%emt 0:05:43]} 24. Bc4 {[%emt 0:07:51]} bxa2 {[%emt 0:06:26]} 25. Rxa2 {[%emt 0:09:37]} Rxa2 {[%emt 0:00:42]} 26. Bxa2 {[%emt 0:00:05]} Ne5 {[%emt 0:00:24]} 27. Nf2 {[%emt 0:01:48]} Bd7 {[%emt 0:00:43]} 28. Bb1 {[%emt 0:01:35]} Bb5 {[%emt 0:00:22]} 29. Rc1 {[%emt 0:00:31]} Ra8 {[%emt 0:02:35]} 30. g4 {[%emt 0:00:29]} Kf8 {[%emt 0:02:07]} 31. h3 {[%emt 0:01:01]} (31. Rc5 $11 {remains equal.} Bd7 32. h4) 31... Bc4 {[%emt 0:04:27]} 32. Kh2 {[%emt 0:31:15]} Ke8 {[%emt 0:00:27]} 33. Kg3 {[%emt 0:00:02]} Kd7 {[%emt 0:00:57]} 34. Nd1 {[%emt 0:00:33]} Ra3 {[%emt 0:06:08]} 35. Rc3 {[%emt 0:11:32]} Ra1 {[%emt 0:01:46]} 36. Ne3 {[%emt 0:03:11]} b5 {[%emt 0:00:15]} 37. Bc2 {[%emt 0:00:05]} Kxd6 {[%emt 0:01:21]} 38. Bd1 {[%emt 0:00:06]} Kc5 {[%emt 0:00:30]} 39. Bxf3 {[%emt 0:00:47]} Kd4 {[%emt 0:00:11]} 40. Rxc4+ {[%emt 0:00:00]} Kxe3 {[%emt 0:00:00]} 41. Rb4 {[%emt 0:10:09]} Nxf3 {[%emt 0:04:31]} 42. Rb3+ {[%emt 0:00:01]} Kxe4 {[%emt 0:00:24]} 43. Rxf3 {[%emt 0:01:09]} Kxd5 {[%emt 0:00:23]} 44. Rf7 {[%emt 0:01:37]} b4 {[%emt 0:05:37]} 45. Rxh7 {[%emt 0:01:34]} b3 {[%emt 0:01:29]} 46. Rb7 {[%emt 0:00:17]} Kc4 {[%emt 0:03:59]} 47. Rc7+ {[%emt 0:03:57]} Kb4 {[%emt 0:04:04]} 48. Rb7+ {[%emt 0:01:10]} Ka3 {[%emt 0:01:56]} 49. Kh4 {[%emt 0:06:40]} b2 {[%emt 0:05:24]} 50. Kh5 {[%emt 0:10:08]} Rh1 {[%emt 0:02:09]} 51. h4 {[%emt 0:00:29]} Rh3 {[%emt 0:00:53]} 52. Ra7+ {[%emt 0:01:19]} Kb3 {[%emt 0:00:19]} 53. Rb7+ {[%emt 0:00:04]} Kc2 {[%emt 0:00:42]} 54. Rxb2+ {[%emt 0:00:16]} Kxb2 {[%emt 0:00:05]} 55. Kxh6 {[%emt 0:00:24]} Rxh4+ $11 {[%emt 0:06:04]} 56. Kg5 {[%emt 0:00:07]} Rh1 {[%emt 0:00:15]} 57. Kf6 {[%emt 0:00:12]} Kc3 {[%emt 0:01:03]} 58. g5 {[%emt 0:00:16]} Kd4 {[%emt 0:00:38]} 59. g6 {[%emt 0:00:18]} Kd5 {[%emt 0:00:40]} 60. g7 {[%emt 0:00:16]} Rf1+ {[%emt 0:00:22]} 61. Ke7 {[%emt 0:00:14]} 1/2-1/2

[Event "WYCC 2018 O16"]
[Site "Halkidiki"]
[Date "2018.10.29"]
[Round "10"]
[White "Wang, Yanbin"]
[Black "Shubin, Kirill"]
[Result "1-0"]
[ECO "A04"]
[WhiteElo "2220"]
[BlackElo "2369"]
[Annotator "NA"]
[PlyCount "59"]
[EventDate "2018.10.20"]
[EventType "swiss"]
[EventCountry "GRE"]
[SourceTitle "playchess.com"]
[Source "ChessBase"]
[SourceQuality "1"]
[TimeControl "40/5400+30:1800+30"]

1. Nf3 {[%emt 0:00:00]} c5 {[%emt 0:00:00]} 2. g3 {[%emt 0:00:00]} Nc6 {[%emt 0:00:00]} 3. Bg2 {[%emt 0:00:00]} g6 {[%emt 0:00:00]} 4. O-O {[%emt 0:00:10]} Bg7 {[%emt 0:00:00]} 5. d3 {[%emt 0:00:39]} e6 {[%emt 0:00:00]} 6. e4 {[%emt 0:00:48]} Nge7 {[%emt 0:00:00]} 7. c3 {[%emt 0:00:16]} d5 {[%emt 0:00:45]} 8. Qe2 {[%emt 0:00:10]} b6 {[%emt 0:00:40]} 9. Re1 {[%emt 0:04:33]} h6 {[%emt 0:00:17] A08: Königsindisch im Anzug} 10. h4 {[%emt 0:05:30]} Ba6 {[%emt 0:07:09]} 11. e5 {[%emt 0:00:33]} Qc7 {[%emt 0:00:15]} 12. a4 {[%emt 0:01:55]} Na5 {[%emt 0:04:00]} 13. Bf4 {[%emt 0:00:53]} c4 {[%emt 0:04:31]} 14. d4 {[%emt 0:00:26]} Nb3 {[%emt 0:00:11]} 15. Ra3 {[%emt 0:00:19]} Bb7 $146 {[%emt 0:00:28]} ({Vorgänger:} 15... Qb7 16. Bf1 b5 17. Rxb3 cxb3 18. axb5 Bxb5 19. Qxb5+ Qxb5 20. Bxb5+ {1-0 (35) Hoffman,A (2495)-Rosito,J (2340) Argentina 1995}) 16. h5 {[%emt 0:04:41]} g5 {[%emt 0:00:15]} 17. Be3 {[%emt 0:00:07]} Nc6 {[%emt 0:00:23]} 18. Nbd2 {[%emt 0:08:31]} Bf8 {[%emt 0:01:29]} 19. Ra2 {[%emt 0:00:35]} Nca5 {[%emt 0:00:18]} 20. Nh2 {[%emt 0:00:12]} O-O-O {[%emt 0:00:54]} 21. f4 {[%emt 0:00:34]} gxf4 {[%emt 0:00:37]} 22. Bxf4 {[%emt 0:00:05]} Nxd2 {[%emt 0:01:20]} 23. Qxd2 {[%emt 0:00:45]} Bg7 {[%emt 0:04:39]} 24. Ng4 {[%emt 0:00:51]} Bc6 {[%emt 0:00:51]} 25. Bf3 {[%emt 0:02:43]} Nb3 {[%emt 0:00:06]} 26. Qe3 {[%emt 0:00:15]} Qd7 {[%emt 0:01:30]} 27. Nxh6 {[%emt 0:01:09]} Bxa4 {[%emt 0:06:13]} 28. Ng4 {[%emt 0:03:19]} Rhg8 {[%emt 0:04:18]} 29. Bg5 $18 {[%emt 0:01:38]} Rdf8 {[%emt 0:00:06]} 30. Kf2 {[%emt 0:00:42]} 1-0

[Event "WYCC 2018 O16"]
[Site "Halkidiki"]
[Date "2018.10.29"]
[Round "10"]
[White "Filgueiras, Nathan Felipe"]
[Black "Lianes Garcia, Marcos"]
[Result "1-0"]
[ECO "C50"]
[WhiteElo "2188"]
[BlackElo "2376"]
[Annotator "NA"]
[PlyCount "59"]
[EventDate "2018.10.20"]
[EventType "swiss"]
[EventCountry "GRE"]
[SourceTitle "playchess.com"]
[Source "ChessBase"]
[SourceQuality "1"]
[TimeControl "40/5400+30:1800+30"]

1. e4 {[%emt 0:00:00]} e5 {[%emt 0:00:00]} 2. Nf3 {[%emt 0:00:00]} Nc6 {[%emt 0:00:07]} 3. Bc4 {[%emt 0:00:00]} Bc5 {[%emt 0:00:26]} 4. O-O {[%emt 0:00:16]} Nf6 {[%emt 0:00:24]} 5. d3 {[%emt 0:00:08]} O-O {[%emt 0:00:21]} 6. h3 {[%emt 0:05:03]} d5 {[%emt 0:19:45]} 7. exd5 {[%emt 0:00:12]} Nxd5 {[%emt 0:00:07]} 8. Re1 {[%emt 0:09:48] LiveBook: 16 Games} Nb6 {[%emt 0:10:28]} 9. Bb3 {[%emt 0:03:13]} Bd6 {[%emt 0:07:55]} 10. Nc3 {[%emt 0:16:06]} Bf5 {[%emt 0:08:49]} 11. Ne4 {[%emt 0:06:52]} Bg6 $14 {[%emt 0:06:49]} 12. Bd2 {[%emt 0:08:57]} Kh8 {[%emt 0:16:17]} 13. Bc3 {[%emt 0:05:28]} f5 {[%emt 0:07:01]} 14. Nxd6 {[%emt 0:02:40]} cxd6 {[%emt 0:00:04]} 15. d4 {[%emt 0:01:14]} e4 {[%emt 0:01:01]} 16. d5 {[%emt 0:01:09]} exf3 {[%emt 0:03:36]} 17. dxc6 {[%emt 0:00:10]} bxc6 {[%emt 0:01:52]} 18. Qxf3 {[%emt 0:01:33]} Qd7 {[%emt 0:01:43]} 19. Be6 {[%emt 0:09:06]} Qc7 {[%emt 0:03:23]} 20. Qf4 {[%emt 0:02:17]} Rfe8 {[%emt 0:05:41]} 21. Rad1 {[%emt 0:03:28]} Rad8 {[%emt 0:00:08]} 22. a4 {[%emt 0:06:17]} Re7 {[%emt 0:02:07]} 23. a5 {[%emt 0:01:04]} Na8 {[%emt 0:00:24]} 24. Qg5 {[%emt 0:01:52]} f4 {[%emt 0:02:58]} 25. Bf5 {[%emt 0:01:26]} Rf7 {[%emt 0:00:22]} 26. Bxg6 {[%emt 0:00:53]} hxg6 {[%emt 0:00:01]} 27. Qxg6 {[%emt 0:00:23]} Kg8 {[%emt 0:00:41]} 28. Re6 {[%emt 0:01:25]} d5 {[%emt 0:00:02]} 29. Rde1 {[%emt 0:01:30]} Qd7 {[%emt 0:00:30]} 30. Bxg7 {[%emt 0:00:56]} 1-0

[Event "WYCC 2018 O16"]
[Site "Halkidiki"]
[Date "2018.10.29"]
[Round "10"]
[White "Petkov, Matey"]
[Black "Morgunov, Daniel"]
[Result "1-0"]
[ECO "D31"]
[WhiteElo "2164"]
[BlackElo "2328"]
[Annotator "NA"]
[PlyCount "61"]
[EventDate "2018.10.20"]
[EventType "swiss"]
[EventCountry "GRE"]
[SourceTitle "playchess.com"]
[Source "ChessBase"]
[SourceQuality "1"]
[TimeControl "40/5400+30:1800+30"]

1. d4 {[%emt 0:00:00]} d5 {[%emt 0:00:00]} 2. c4 {[%emt 0:00:21]} e6 {[%emt 0:00:00]} 3. Nc3 {[%emt 0:00:17]} Be7 {[%emt 0:00:00]} 4. Bf4 {[%emt 0:01:04]} Nf6 {[%emt 0:00:26]} 5. e3 {[%emt 0:00:09]} O-O {[%emt 0:00:26]} 6. Nf3 {[%emt 0:03:00]} b6 {[%emt 0:04:32]} 7. cxd5 {[%emt 0:08:12]} exd5 {[%emt 0:05:58]} 8. Ne5 {[%emt 0:03:41] LiveBook: 5 Games} Be6 {[%emt 0:02:28]} 9. Be2 {[%emt 0:01:46]} c5 {[%emt 0:02:24]} 10. O-O {[%emt 0:00:25]} Qc8 {[%emt 0:09:12]} 11. Bf3 {[%emt 0:10:16]} Rd8 {[%emt 0:01:51]} 12. Qa4 {[%emt 0:04:57]} Qb7 {[%emt 0:05:05]} 13. Rfd1 {[%emt 0:02:54]} Nfd7 {[%emt 0:15:24]} 14. e4 $16 {[%emt 0:07:51]} Nxe5 {[%emt 0:18:36]} 15. Bxe5 {[%emt 0:00:10]} Bd7 {[%emt 0:11:01]} 16. Qc2 {[%emt 0:00:49]} cxd4 {[%emt 0:01:14]} 17. Nxd5 {[%emt 0:05:33]} Bc5 {[%emt 0:00:42]} 18. b4 {[%emt 0:09:12]} Nc6 {[%emt 0:04:02]} 19. Bxg7 {[%emt 0:02:08]} Nxb4 {[%emt 0:06:17]} 20. Nxb4 {[%emt 0:00:21]} Kxg7 {[%emt 0:00:40]} 21. e5 {[%emt 0:00:12]} Qc8 {[%emt 0:01:54]} 22. Bxa8 {[%emt 0:00:39]} Bxb4 {[%emt 0:02:23]} 23. Be4 {[%emt 0:01:26]} Qxc2 {[%emt 0:00:23]} 24. Bxc2 {[%emt 0:00:02]} Bc3 {[%emt 0:00:28]} 25. Rac1 {[%emt 0:02:13]} Be6 {[%emt 0:01:51]} 26. Bb3 {[%emt 0:03:23]} Bd7 {[%emt 0:05:02]} 27. Rd3 {[%emt 0:01:25]} Bf5 {[%emt 0:00:30]} 28. Rcxc3 {[%emt 0:00:23]} dxc3 {[%emt 0:00:36]} 29. Rxd8 {[%emt 0:00:07]} c2 {[%emt 0:00:09]} 30. Bxc2 {[%emt 0:00:13]} Bxc2 {[%emt 0:00:03]} 31. Rd7 {[%emt 0:00:12]} 1-0

[Event "WYCC 2018 O16"]
[Site "Halkidiki"]
[Date "2018.10.29"]
[Round "10"]
[White "Lou, Vincent"]
[Black "Zhalmakhanov, Ramazan"]
[Result "0-1"]
[ECO "E33"]
[WhiteElo "2155"]
[BlackElo "2316"]
[Annotator "NA"]
[PlyCount "62"]
[EventDate "2018.10.20"]
[EventType "swiss"]
[EventCountry "GRE"]
[SourceTitle "playchess.com"]
[Source "ChessBase"]
[SourceQuality "1"]
[TimeControl "40/5400+30:1800+30"]

1. d4 {[%emt 0:00:00]} Nf6 {[%emt 0:00:00]} 2. c4 {[%emt 0:00:00]} e6 {[%emt 0:00:00]} 3. Nc3 {[%emt 0:00:00]} Bb4 {[%emt 0:00:00]} 4. Qc2 {[%emt 0:00:00]} Nc6 {[%emt 0:00:35]} 5. Nf3 {[%emt 0:00:00]} d6 {[%emt 0:00:08]} 6. Bd2 {[%emt 0:00:00]} e5 {[%emt 0:00:23]} 7. d5 {[%emt 0:00:25]} Bxc3 {[%emt 0:00:16]} 8. Bxc3 {[%emt 0:00:10]} Ne7 {[%emt 0:00:05] E33: Nimzo-Indian: Classical: 4...Nc6} 9. e4 {[%emt 0:02:43]} O-O {[%emt 0:05:10]} 10. Be2 {[%emt 0:14:51]} Ng6 {[%emt 0:00:11]} 11. g3 {[%emt 0:04:07]} Bh3 {[%emt 0:06:42]} 12. Ng5 {[%emt 0:04:13]} Bg4 $146 {[%emt 0:00:32]} ({Predecessor:} 12... Bd7 13. h4 h6 14. Nf3 Bg4 15. Ng1 Re8 16. Bxg4 Nxg4 17. f3 Nf6 18. Ne2 c6 19. Qb3 Qc7 20. Bd2 {½-½ (20) Alterman,B (2615)-Graf,A (2625) Recklinghausen 1998}) 13. h4 {[%emt 0:03:25]} h6 {[%emt 0:07:15]} 14. Bxg4 {[%emt 0:05:27]} Nxg4 {[%emt 0:00:08]} 15. Nf3 {[%emt 0:02:47]} Qd7 {[%emt 0:09:42]} 16. Nh2 {[%emt 0:11:03]} Nf6 {[%emt 0:11:09]} 17. O-O-O {[%emt 0:08:18]} c6 {[%emt 0:00:15]} 18. f4 {[%emt 0:09:46]} cxd5 {[%emt 0:07:19]} 19. exd5 {[%emt 0:04:22]} Rfc8 {[%emt 0:07:53]} 20. Qd3 {[%emt 0:09:17]} h5 {[%emt 0:03:56]} 21. Rhg1 {[%emt 0:09:32]} Qa4 $19 {[%emt 0:04:49]} 22. f5 {[%emt 0:05:26]} Ne7 {[%emt 0:00:19]} 23. g4 {[%emt 0:02:57]} Qxc4 {[%emt 0:00:55]} 24. gxh5 {[%emt 0:01:41]} Qxd3 {[%emt 0:03:36]} 25. Rxd3 {[%emt 0:00:05]} Nxh5 {[%emt 0:00:04]} 26. Rg5 {[%emt 0:01:43]} Nf4 {[%emt 0:00:18]} 27. Rdg3 {[%emt 0:00:12]} Ne2+ {[%emt 0:01:15]} 28. Kd2 {[%emt 0:00:23]} Nxg3 {[%emt 0:00:06]} 29. Rxg3 {[%emt 0:00:05]} Nxf5 {[%emt 0:00:19]} 30. Rg5 {[%emt 0:01:27]} Nxh4 {[%emt 0:00:07]} 31. Rh5 {[%emt 0:00:27]} Ng6 {[%emt 0:00:11]} 0-1

[Event "WYCC 2018 O16"]
[Site "Halkidiki"]
[Date "2018.10.29"]
[Round "10"]
[White "Van Malder, Dries"]
[Black "Talukdar, Rohan"]
[Result "0-1"]
[ECO "D82"]
[WhiteElo "2150"]
[BlackElo "2279"]
[Annotator "NA"]
[PlyCount "84"]
[EventDate "2018.10.20"]
[EventType "swiss"]
[EventCountry "GRE"]
[SourceTitle "playchess.com"]
[Source "ChessBase"]
[SourceQuality "1"]
[TimeControl "40/5400+30:1800+30"]

1. d4 {[%emt 0:00:00]} Nf6 {[%emt 0:00:00]} 2. c4 {[%emt 0:00:00]} g6 {[%emt 0:00:00]} 3. Nc3 {[%emt 0:00:00]} d5 {[%emt 0:00:00]} 4. Bf4 {[%emt 0:00:00]} Bg7 {[%emt 0:00:23]} 5. e3 {[%emt 0:00:05]} c6 {[%emt 0:04:41]} 6. Nf3 {[%emt 0:01:08]} O-O {[%emt 0:00:11]} 7. Rc1 {[%emt 0:00:36]} Be6 {[%emt 0:05:11]} 8. c5 {[%emt 0:15:41]} Bg4 {[%emt 0:02:38] LiveBook: 8 Games} 9. Be2 {[%emt 0:09:06]} Bxf3 {[%emt 0:10:24]} 10. Bxf3 {[%emt 0:00:13]} Nbd7 {[%emt 0:00:26]} 11. O-O {[%emt 0:00:36]} Re8 {[%emt 0:02:35]} 12. Qc2 {[%emt 0:09:30]} e5 {[%emt 0:04:53]} 13. Bg3 {[%emt 0:02:24]} h5 {[%emt 0:10:19]} 14. h3 {[%emt 0:01:58]} Nh7 {[%emt 0:01:40]} 15. Rcd1 $17 {[%emt 0:15:10]} Ng5 {[%emt 0:09:16]} 16. Be2 {[%emt 0:01:21]} exd4 {[%emt 0:04:00]} 17. exd4 {[%emt 0:00:10]} Ne6 {[%emt 0:00:02]} 18. Qa4 {[%emt 0:07:03]} b5 {[%emt 0:10:08]} 19. Nxb5 {[%emt 0:08:31]} cxb5 {[%emt 0:11:09]} 20. Bxb5 {[%emt 0:01:13]} Re7 {[%emt 0:09:29]} 21. Bd6 {[%emt 0:04:34]} Nf6 {[%emt 0:00:06]} 22. Bc6 {[%emt 0:03:53]} Rb8 {[%emt 0:01:55]} 23. b4 {[%emt 0:00:58]} Ne4 {[%emt 0:00:14]} 24. Bxe7 {[%emt 0:01:41]} Qxe7 {[%emt 0:00:02]} 25. Rd3 {[%emt 0:05:53]} Nxd4 {[%emt 0:06:58]} 26. Bxd5 {[%emt 0:00:48]} Nc3 {[%emt 0:00:05]} 27. Re3 {[%emt 0:04:06]} Qc7 {[%emt 0:01:24]} 28. Bxf7+ {[%emt 0:05:18]} Qxf7 {[%emt 0:00:06]} 29. Qa6 {[%emt 0:01:29]} Nd5 {[%emt 0:02:45]} 30. Rg3 {[%emt 0:01:01]} Kh7 {[%emt 0:01:11]} 31. a3 {[%emt 0:00:16]} Re8 {[%emt 0:01:21]} 32. Kh1 {[%emt 0:00:25]} Re2 {[%emt 0:00:31]} 33. Rg5 {[%emt 0:00:40]} Nf4 {[%emt 0:00:26]} 34. Qd6 {[%emt 0:00:32]} Nfe6 {[%emt 0:00:24]} 35. Rd5 {[%emt 0:00:39]} Rxf2 {[%emt 0:00:09]} 36. Rxf2 {[%emt 0:00:07]} Qxf2 {[%emt 0:00:02]} 37. Rxd4 {[%emt 0:00:51]} Nxd4 {[%emt 0:00:20]} 38. Qd7 {[%emt 0:00:27]} Ne2 {[%emt 0:00:30]} 39. Qd1 {[%emt 0:00:13]} Bd4 {[%emt 0:00:07]} 40. c6 {[%emt 0:00:00]} Ng3+ {[%emt 0:00:00]} 41. Kh2 {[%emt 0:00:18]} Nf1+ {[%emt 0:00:13]} 42. Kh1 {[%emt 0:00:03]} Qg1# {[%emt 0:00:05]} 0-1